fUSD/lending_fUSD_20250905
["ID","MTS","AMOUNT","RATE_DAILY","PERIOD"]
[383782865,1757113850652,-151.0,0.00099879,56]
[383782867,1757113850662,-250.0,0.00099879,56]
[383782869,1757113850671,-250.0,0.00099879,120]
[383782871,1757113850681,-500.0,0.00099879,56]
[383782874,1757113850691,-500.0,0.00099879,120]
[383782876,1757113850701,-491.00673528,0.0009988,120]
[383782878,1757113850711,-212.83735871,0.0009988,23]
[383782880,1757113850721,-21951.81403355,0.0009988,56]
[383782882,1757113850731,-17348.77260441,0.0009988,120]
[383782884,1757113850744,-1212.12640996,0.0009988,120]
[383782886,1757113850755,-14667.66875739,0.0009988,120]
[383782888,1757113850767,-6015.59,0.0009988,120]
[383782890,1757113850778,-43927.20491918,0.0009988,120]
[383782902,1757113850888,424.27276196,0.00062041,120]
[383782906,1757113850911,-4867.7,0.0009988,120]
[383782908,1757113850923,-3999.42,0.0009988,120]
[383782911,1757113850940,-298.34808751,0.00099787,30]
[383782913,1757113850952,-3108.22058475,0.00099787,30]
[383782915,1757113850962,-1671.54408516,0.0009988,120]
[383782917,1757113850973,-833493.184187,0.0009988,120]
[383782922,1757113851007,-52401.79229228,0.0009988,120]
[383783045,1757113854380,-469156.26636071,0.0009988,120]
[383783046,1757113854433,-83584.10639741,0.0009988,120]
[383783047,1757113854447,-973.77304499,0.0009988,120]
[383783048,1757113854465,-400.0,0.00062041,120]
[383783049,1757113854476,-9724.44335251,0.0009988,120]
[383783050,1757113854617,-400.0,0.00056999,118]
[383783051,1757113854628,-400.0,0.00057273,118]
[383783052,1757113854639,-13425.11673518,0.0005787,120]
[383783053,1757113856534,-2825.53986,0.0005787,120]
[383783054,1757113856545,-313.09792025,0.0005787,120]
[383783055,1757113857924,-33436.24548457,0.0005787,120]
[383783056,1757113857933,-400.0,0.00062041,120]
[383783057,1757113857941,-500.0,0.00062041,120]
[383783058,1757113857950,-400.0,0.00062041,120]
[383783059,1757113857958,-400.0,0.00062041,120]
[383783060,1757113857966,-400.0,0.00062041,120]
[383783061,1757113857974,-400.0,0.00062315,120]
[383783062,1757113857982,-400.0,0.00062315,120]
[383783063,1757113857991,-400.0,0.00062315,120]
[383783064,1757113857999,-400.0,0.00062315,120]
[383783065,1757113858008,-400.0,0.00062589,120]
[383783066,1757113858016,-400.0,0.00062589,120]
[383783067,1757113858025,-400.0,0.00062589,120]
[383783068,1757113858035,-400.0,0.00062863,120]
[383783069,1757113858046,-400.0,0.00063137,120]
[383783070,1757113858058,-400.0,0.00063411,120]
[383783071,1757113858068,-400.0,0.00063685,120]
[383783072,1757113858078,-400.0,0.00063959,120]
[383783073,1757113858088,-400.0,0.00064233,120]
[383783074,1757113858097,-200.0,0.000994,36]
[383783075,1757113858107,-500.0,0.000995,36]
[383783076,1757113858116,-62464.13555506,0.0009988,120]
[383783077,1757113858168,540.87973165,0.00029,10]
[383783078,1757113864987,285.45353695,0.0003808,15]
[383783079,1757113866630,168.0,0.00036464,2]
[383783080,1757113870470,168.0,0.00035819,2]
[383783081,1757113873552,168.0,0.00035533,2]
[383783082,1757113876446,168.0,0.00036464,2]
[383783083,1757113876843,152.072003,0.00036164,10]
[383783084,1757113879387,168.0,0.00037714,2]
[383783085,1757113882289,168.0,0.00036917,2]
[383783086,1757113886061,168.0,0.00037382,2]
[383783087,1757113889274,168.0,0.00038051,2]
[383783088,1757113892252,168.0,0.00036454,2]
[383783089,1757113895202,168.0,0.0003591,7]
[383783090,1757113898113,168.0,0.00036867,7]
[383783091,1757113901850,168.0,0.00036794,7]
[383783092,1757113905079,168.0,0.00036558,7]
[383783093,1757113908938,150.0,0.000359,2]
[383783094,1757113919618,-162.52,0.000407,7]
[383783095,1757113919649,-165.04,0.00041321,120]
[383783096,1757113934706,5000.0,0.00041293,2]
[383783097,1757113945601,165.85,0.00029435,2]
[383783098,1757113945850,165.85,0.00035322,2]
[383783099,1757113946070,165.85,0.00041209,2]
[383783100,1757113964212,-165.85,0.00047096,2]
[383783101,1757113964239,-1996.0,0.0005,30]
[383783102,1757113967143,500.0,0.00037981,2]
[383783103,1757114003847,309.72467778,0.00049999,120]
[383783104,1757114015602,163.2,0.00041293,2]
[383783105,1757114015808,163.2,0.00043358,2]
[383783106,1757114016023,163.2,0.00045423,2]
[383783107,1757114016384,163.2,0.00047487,2]
[383783108,1757114016602,163.2,0.00049552,2]
[383783109,1757114027789,153.799334,0.00036164,10]
[383783110,1757114027872,158.838294,0.00036164,10]
[383783111,1757114028014,329.272458,0.00036164,10]
[383783112,1757114028613,154.108433,0.00036164,10]
[383783113,1757114074422,150.0,0.00041293,2]
[383783114,1757114148508,2000.0,0.00045,120]
[383783116,1757114168622,1371.0,0.0004129,120]
[383783118,1757114360089,154.78,0.00013699,2]
[383783119,1757114360286,154.78,0.00044521,2]
[383783120,1757114402033,176.88013964,0.00036821,2]
[383783121,1757114526354,200.0,0.00041293,2]
[383783122,1757114530181,-700.0,0.0005094,60]
[383783123,1757114530209,-250.0,0.0005142,120]
[383783124,1757114530240,-605.36365752,0.00052448,2]
[383783125,1757114530271,-165.85,0.00052983,2]
[383783126,1757114530298,-1273.83310994,0.00053977,7]
[383783127,1757114530324,-353.10550728,0.00053977,2]
[383783128,1757114530351,-900.0,0.00054077,60]
[383783129,1757114530378,-514.736181,0.00054257,2]
[383783130,1757114530404,-1000.0,0.00054279,2]
[383783131,1757114547273,10000.0,0.00030137,120]
[383783132,1757114555477,10000.0,0.00030137,120]
[383783133,1757114564991,10000.0,0.00030137,120]
[383783134,1757114575513,10000.0,0.00030137,120]
[383783135,1757114584343,4237.11154426,0.00030137,120]
[383783136,1757114584371,5762.88845574,0.00030137,120]
[383783137,1757114625996,10000.0,0.00030137,120]
[383783138,1757114638618,10000.0,0.00030137,120]
[383783139,1757114660099,10000.0,0.00030137,120]
[383783140,1757114668284,10000.0,0.00030137,120]
[383783141,1757114687380,4237.11154426,0.00030137,120]
[383783142,1757114687408,5762.88845574,0.00030137,120]
[383783143,1757114711023,22171.07190218,0.000264,2]
[383783144,1757114711506,2923.37981936,0.000154,2]
[383783145,1757114713318,208.88816707,0.00046,120]
[383783146,1757114720716,2327.92,9e-05,2]
[383783147,1757114723740,491.47153887,0.000438,30]
[383783148,1757114729253,7323.34678036,0.00035,120]
[383783149,1757114729282,2738.52565379,0.00035,120]
[383783150,1757114733562,230.67685132,0.00049,120]
[383783151,1757114737290,8452.0179448,9e-05,2]
[383783152,1757114742134,38578.77955009,0.00025,2]
[383783153,1757114742163,44174.89,0.00025,2]
[383783154,1757114742190,7401.89201241,0.00025,2]
[383783155,1757114743889,289.81898064,0.00044,120]
[383783156,1757114761057,460.46631149,0.000448,120]
[383783157,1757114763849,1993.35765064,8e-05,2]
[383783158,1757114771833,214.0,0.00043,7]
[383783159,1757114773212,197.86,0.0003,5]
[383783160,1757114781572,185.57855833,0.00045,120]
[383783162,1757114785106,12059.91245077,0.00031,120]
[383783163,1757114792404,352.68233314,0.00042,120]
[383783165,1757114818458,5000.00466078,0.00024,5]
[383783167,1757114827826,21844.4270418,0.000225,2]
[383783168,1757114827853,12977.01977308,0.000225,2]
[383783169,1757114846555,2012.14180963,0.00032,2]
[383783170,1757114849204,3740275.31879355,0.00038176,30]
[383783172,1757114861936,155.98,0.000382,14]
[383783173,1757114862481,410.68365985,0.0003186,120]
[383783174,1757114863038,5000.0,0.0003013,2]
[383783175,1757114869486,150.0,0.000315,2]
[383783176,1757114870644,1141.08771587,0.000265,2]
[383783177,1757114870671,9394.63744208,0.000265,2]
[383783178,1757114875173,5428.08393327,0.00022,4]
[383783179,1757114875210,1747.62154236,0.000181,2]
[383783180,1757114877232,33429.65708229,0.0002,2]
[383783181,1757114877259,38871.21972192,0.0002,2]
[383783182,1757114877287,50000.0,0.0002,2]
[383783183,1757114877315,50000.0,0.0002,2]
[383783184,1757114877343,50000.0,0.0002,2]
[383783185,1757114877371,49200.0,0.0002,2]
[383783186,1757114877398,50000.0,0.0002,2]
[383783187,1757114877429,50000.0,0.0002,2]
[383783188,1757114877650,50000.0,0.0002,2]
[383783189,1757114907229,1168.54664584,0.00018,2]
[383783190,1757114916503,-300.0,0.000198,7]
[383783191,1757114916533,-600.0,0.000199,7]
[383783192,1757114916564,-202.90585184,0.00019999,2]
[383783193,1757114916594,-1627281.00579573,0.0002,2]
[383783194,1757114977310,-1102.90585184,0.0002,2]
[383783195,1757114977336,-1495.05863213,0.0002,2]
[383783196,1757115015336,158.45,0.00016712,2]
[383783197,1757115032050,-1934.09152006,0.00022,2]
[383783198,1757115032060,-250.0,0.00022,2]
[383783200,1757115032070,-174.64,0.000221,7]
[383783201,1757115032080,-1200.0,0.00024799,2]
[383783202,1757115032090,-7130.54758528,0.000248,3]
[383783203,1757115032102,-2098.98946862,0.000248,3]
[383783204,1757115032112,-500.0,0.00024873,2]
[383783205,1757115032122,-500.0,0.00024873,2]
[383783206,1757115032132,-500.0,0.00024873,2]
[383783207,1757115032142,-580.0,0.0002488,7]
[383783208,1757115032152,-171.06,0.0002489,2]
[383783209,1757115032162,-9243.94871382,0.000249,3]
[383783210,1757115032175,-1149.61817021,0.000249,3]
[383783211,1757115032191,-10090.86647489,0.000249,3]
[383783212,1757115032203,-1148.82855395,0.000249,3]
[383783213,1757115032215,-498.49099959,0.000249,3]
[383783214,1757115032246,-822.98562314,0.000249,3]
[383783215,1757115032336,-14579.93280413,0.000249,3]
[383783216,1757115032349,-157514.97809285,0.000249,3]
[383783217,1757115032361,-943.17711426,0.000249,3]
[383783218,1757115032373,-1746.30127893,0.000249,3]
[383783219,1757115032385,-500.0,0.000249,3]
[383783220,1757115032396,-1421.775,0.000249,3]
[383783221,1757115032409,-14057.60937723,0.000249,3]
[383783222,1757115032419,-404.60096905,0.000249,3]
[383783223,1757115032429,-1680.0,0.00026993,2]
[383783224,1757115032439,-2448.89083685,0.000279,2]
[383783225,1757115032449,-167.32,0.00027981,2]
[383783226,1757115032458,-199.99999901,0.00028,2]
[383783227,1757115032468,-2448.89083685,0.00029389,2]
[383783228,1757115032478,-2790.57516289,0.0003013,2]
[383783229,1757115032488,-2448.89083685,0.00030878,2]
[383783230,1757115032499,-2448.89083685,0.00032367,2]
[383783231,1757115032509,-2448.89083685,0.00033856,2]
[383783232,1757115032522,-167.32,0.00034977,2]
[383783233,1757115032531,-254.23466065,0.00035,30]
[383783239,1757115032794,-2448.89083685,0.00035344,2]
[383783240,1757115032804,-400.0,0.00035616,10]
[383783241,1757115032813,-400.0,0.00035616,10]
[383783242,1757115032822,-400.0,0.00035616,10]
[383783243,1757115032832,-400.0,0.00035616,10]
[383783244,1757115032841,-400.0,0.00035616,10]
[383783245,1757115032851,-400.0,0.00035616,10]
[383783246,1757115032860,-400.0,0.00035616,10]
[383783247,1757115032869,-407.07,0.00035616,10]
[383783248,1757115032881,-400.0,0.00035616,10]
[383783249,1757115032890,-400.0,0.00035616,10]
[383783250,1757115032899,-400.0,0.00035616,10]
[383783251,1757115032909,-400.0,0.00035616,10]
[383783252,1757115032918,-400.0,0.00035616,10]
[383783253,1757115032927,-400.0,0.00035616,10]
[383783254,1757115032937,-400.0,0.00035616,10]
[383783255,1757115032946,-400.0,0.00035616,10]
[383783256,1757115032955,-400.0,0.00035616,10]
[383783257,1757115032965,-241.51130403,0.00035616,10]
[383783258,1757115032975,-400.0,0.00035616,10]
[383783259,1757115032984,-400.0,0.0003589,10]
[383783260,1757115032993,-400.0,0.0003589,10]
[383783261,1757115033003,-400.0,0.0003589,10]
[383783262,1757115033014,-403.8241824,0.0003589,10]
[383783263,1757115033024,-400.0,0.0003589,10]
[383783264,1757115033033,-400.0,0.0003589,10]
[383783265,1757115033043,-400.0,0.0003589,10]
[383783266,1757115033053,-400.0,0.0003589,10]
[383783267,1757115033063,-400.0,0.0003589,10]
[383783268,1757115033072,-400.0,0.0003589,10]
[383783269,1757115033081,-400.0,0.0003589,10]
[383783270,1757115033091,-400.0,0.0003589,10]
[383783271,1757115033100,-400.0,0.00036164,10]
[383783272,1757115033109,-400.0,0.00036164,10]
[383783273,1757115033118,-335.73173842,0.00036164,10]
[383783274,1757115033128,-400.0,0.00036164,10]
[383783275,1757115033137,-400.0,0.00036164,10]
[383783276,1757115033147,-400.0,0.00036164,10]
[383783277,1757115033157,-400.0,0.00036164,10]
[383783278,1757115033166,-400.0,0.00036164,10]
[383783279,1757115033176,-400.0,0.00036164,10]
[383783280,1757115033185,-400.0,0.00036164,10]
[383783281,1757115033195,-400.0,0.00036164,10]
[383783282,1757115033204,-400.0,0.00036438,10]
[383783283,1757115033214,-400.0,0.00036438,10]
[383783284,1757115033223,-400.0,0.00036438,10]
[383783285,1757115033233,-400.0,0.00036438,10]
[383783286,1757115033243,-400.0,0.00036438,10]
[383783287,1757115033252,-400.0,0.00036438,10]
[383783288,1757115033261,-400.0,0.00036438,10]
[383783289,1757115033271,-400.0,0.00036438,10]
[383783290,1757115033280,-400.0,0.00036438,10]
[383783291,1757115033290,-400.0,0.00036438,10]
[383783292,1757115033299,-4658.83,0.00036555,2]
[383783293,1757115033310,-400.0,0.00036712,10]
[383783294,1757115033320,-400.0,0.00036712,10]
[383783295,1757115033329,-400.0,0.00036712,10]
[383783296,1757115033339,-400.0,0.00036712,10]
[383783297,1757115033348,-400.0,0.00036712,10]
[383783298,1757115033357,-400.0,0.00036712,10]
[383783299,1757115033368,-400.0,0.00036712,10]
[383783300,1757115033377,-400.0,0.00036712,10]
[383783301,1757115033386,-400.0,0.00036712,10]
[383783302,1757115033396,-413.62336866,0.00036712,10]
[383783303,1757115033406,-150.0,0.000368,2]
[383783304,1757115033415,-548.62831946,0.00036833,2]
[383783305,1757115033435,-656.7284898,0.00036833,2]
[383783306,1757115033446,-1032.65940234,0.00036833,2]
[383783307,1757115033458,-210.87462525,0.00036833,2]
[383783308,1757115033468,-165.04,0.00036949,30]
[383783309,1757115033478,-400.0,0.00036986,10]
[383783310,1757115033487,-400.0,0.00036986,10]
[383783311,1757115033497,-400.0,0.00036986,10]
[383783312,1757115033506,-400.0,0.00036986,10]
[383783313,1757115033515,-400.0,0.00036986,10]
[383783314,1757115033525,-400.0,0.00036986,10]
[383783315,1757115033535,-400.0,0.00036986,10]
[383783316,1757115033544,-400.0,0.00036986,10]
[383783317,1757115033554,-400.0,0.0003726,10]
[383783318,1757115033563,-308.24077556,0.0003726,10]
[383783322,1757115038137,-400.0,0.00035616,10]
[383783323,1757115038147,-91.75922444,0.0003726,10]
[383783324,1757115038157,-400.0,0.0003726,10]
[383783325,1757115038167,-400.0,0.0003726,10]
[383783326,1757115038176,-400.0,0.0003726,10]
[383783327,1757115038185,-498.17,0.0003726,10]
[383783328,1757115038196,-400.0,0.0003726,10]
[383783329,1757115038205,-57645.20133418,0.000375,120]
[383783330,1757115038215,-400.0,0.00037534,10]
[383783331,1757115038226,-400.0,0.00037534,10]
[383783332,1757115038237,-400.0,0.00037534,10]
[383783333,1757115038247,-400.0,0.00037534,10]
[383783334,1757115038256,-400.0,0.00037534,10]
[383783335,1757115038267,-900.0,0.000377,13]
[383783336,1757115038277,-1200.0,0.000378,13]
[383783337,1757115038287,-400.0,0.00037808,10]
[383783338,1757115038297,-406.06,0.00037808,10]
[383783339,1757115038309,-400.0,0.00037808,10]
[383783340,1757115038318,-400.0,0.00037808,10]
[383783341,1757115038327,-1500.0,0.000379,13]
[383783342,1757115038338,-241.74485034,0.000379,2]
[383783343,1757115038348,-13000.0,0.00038,120]
[383783344,1757115038357,-157.0,0.00038,120]
[383783345,1757115038366,-156.0,0.00038,120]
[383783346,1757115038375,-403.08835652,0.00038076,13]
[383783347,1757115038385,-400.0,0.00038082,10]
[383783348,1757115038394,-400.0,0.00038082,10]
[383783350,1757115038403,-151.44,0.00038166,2]
[383783352,1757115038413,-151.44,0.00038166,2]
[383783354,1757115038422,-151.44,0.00038166,2]
[383783356,1757115038431,-151.44,0.00038166,2]
[383783358,1757115038440,-151.44,0.00038166,2]
[383783360,1757115038451,-151.44,0.00038166,2]
[383783361,1757115038460,-151.44,0.00038166,2]
[383783364,1757115038470,-151.44,0.00038166,2]
[383783366,1757115038481,-151.44,0.00038166,2]
[383783368,1757115038492,-151.44,0.00038166,2]
[383783369,1757115038500,-151.44,0.00038166,2]
[383783371,1757115038511,-151.44,0.00038166,2]
[383783373,1757115038519,-151.44,0.00038166,2]
[383783375,1757115038529,-151.44,0.00038166,2]
[383783377,1757115038539,-151.44,0.00038166,2]
[383783379,1757115038548,-151.44,0.00038166,2]
[383783381,1757115038557,-151.44,0.00038166,2]
[383783383,1757115038567,-151.44,0.00038166,2]
[383783385,1757115038576,-151.44,0.00038166,2]
[383783386,1757115038585,-151.44,0.00038166,2]
[383783388,1757115038594,-151.44,0.00038166,2]
[383783390,1757115038604,-151.44,0.00038166,2]
[383783392,1757115038613,-151.44,0.00038166,2]
[383783394,1757115038622,-151.44,0.00038166,2]
[383783396,1757115038632,-151.44,0.00038166,2]
[383783398,1757115038641,-151.44,0.00038166,2]
[383783400,1757115038651,-151.44,0.00038166,2]
[383783402,1757115038664,-151.44,0.00038166,2]
[383783404,1757115038674,-151.44,0.00038166,2]
[383783406,1757115038683,-151.44,0.00038166,2]
[383783408,1757115038693,-151.44,0.00038166,2]
[383783410,1757115038703,-151.44,0.00038166,2]
[383783412,1757115038712,-151.44,0.00038166,2]
[383783414,1757115038722,-151.44,0.00038166,2]
[383783416,1757115038734,-151.44,0.00038166,2]
[383783418,1757115038744,-151.44,0.00038166,2]
[383783420,1757115038753,-151.44,0.00038166,2]
[383783422,1757115038763,-151.44,0.00038166,2]
[383783425,1757115038773,-151.44,0.00038166,2]
[383783427,1757115038782,-151.44,0.00038166,2]
[383783429,1757115038791,-3925123.55081269,0.00038176,30]
[383783430,1757115038800,-150.0,0.00038176,75]
[383783432,1757115038810,-151.44,0.0003819,2]
[383783434,1757115038820,-7492.3,0.000382,14]
[383783437,1757115038830,-2339.39,0.000382,2]
[383783438,1757115038839,-2448.89083685,0.00038322,2]
[383783441,1757115038849,-400.0,0.00038356,10]
[383783442,1757115038858,-400.0,0.00038356,10]
[383783445,1757115038868,-411.39,0.0003863,10]
[383783446,1757115038878,-400.0,0.0003863,10]
[383783447,1757115038887,-400.0,0.00038904,10]
[383783448,1757115038896,-151.44,0.0003899,2]
[383783449,1757115038905,-151.44,0.0003899,2]
[383783450,1757115038914,-151.44,0.0003899,2]
[383783451,1757115038924,-151.44,0.0003899,2]
[383783452,1757115038934,-151.44,0.0003899,2]
[383783453,1757115038943,-151.44,0.0003899,2]
[383783454,1757115038952,-151.44,0.0003899,2]
[383783455,1757115038961,-151.44,0.0003899,2]
[383783456,1757115038970,-151.44,0.0003899,2]
[383783457,1757115038979,-151.44,0.0003899,2]
[383783458,1757115038988,-151.44,0.0003899,2]
[383783459,1757115038997,-151.44,0.0003899,2]
[383783460,1757115039006,-151.44,0.0003899,2]
[383783462,1757115039016,-151.44,0.0003899,2]
[383783464,1757115039025,-1143219.63514265,0.00039,120]
[383783466,1757115039034,-400.0,0.00039178,10]
[383783468,1757115039044,-400.0,0.00039452,10]
[383783470,1757115039054,-400.0,0.00039726,10]
[383783472,1757115039064,-2448.89083685,0.00039811,15]
[383783474,1757115039073,-400.0,0.0004,10]
[383783476,1757115039083,-258.35,0.00040273,10]
[383783478,1757115039092,-349.25521688,0.000412,2]
[383783480,1757115039103,-188.29771104,0.000413,2]
[383783482,1757115039112,-2448.89083685,0.000413,15]
[383783484,1757115039122,-170.06810205,0.000415,120]
[383783486,1757115039131,-167.32,0.00041972,2]
[383783488,1757115039141,-253.95725554,0.00042,30]
[383783490,1757115039151,-421.91,0.000421,7]
[383783492,1757115039160,-246.38640645,0.000425,120]
[383783494,1757115039169,-151.44,0.0004299,2]
[383783497,1757115039179,-164.69831052,0.00043,120]
[383783499,1757115039189,-19561.9528037,0.00043,120]
[383783501,1757115039199,-465.12382463,0.000435,120]
[383783503,1757115039208,-342.09668294,0.0004439,120]
[383783505,1757115039217,-482.7997409,0.000445,7]
[383783507,1757115039226,-1048.89189386,0.000448,15]
[383783509,1757115039236,-3008.73305544,0.000448,17]
[383783511,1757115039245,-156.0,0.000448,120]
[383783513,1757115039254,-150.0,0.00044955,93]
[383783515,1757115039263,-150.0,0.00044955,93]
[383783517,1757115039272,-150.0,0.00044955,93]
[383783519,1757115039281,-150.0,0.00044955,93]
[383783521,1757115039290,-524.62591775,0.00044973,10]
[383783523,1757115039299,-150.0,0.0004499,120]
[383783525,1757115039309,-151.44,0.0004499,2]
[383783527,1757115039318,-151.44,0.0004499,2]
[383783529,1757115039327,-151.44,0.0004499,2]
[383783531,1757115039337,-151.44,0.0004499,2]
[383783533,1757115039346,-151.44,0.0004499,2]
[383783535,1757115039356,-151.44,0.0004499,2]
[383783537,1757115039365,-151.44,0.0004499,2]
[383783539,1757115039374,-255.05826593,0.00045,120]
[383783541,1757115039383,-285.97123061,0.00045,120]
[383783543,1757115039392,-417.69926247,0.00045,120]
[383783545,1757115039401,-423.8232489,0.00045,120]
[383783547,1757115039410,-194.60861138,0.00045,120]
[383783549,1757115039420,-620079.25359904,0.00045,120]
[383783551,1757115039432,-89288.509697,0.00045,120]
[383783553,1757115039442,-4596.22376086,0.00045,120]
[383783555,1757115039451,-299.29075863,0.00045,120]
[383783557,1757115039461,-273.9375978,0.00045,120]
[383783559,1757115039470,-169.56073279,0.0004513,120]
[383783561,1757115039480,-162.72861807,0.000457,90]
[383783563,1757115039489,-204.45370996,0.000457,120]
[383783565,1757115039498,-801.77,0.00045811,30]
[383783567,1757115039507,-469.39,0.00045811,30]
[383783569,1757115039516,-801.77,0.00045811,30]
[383783571,1757115039525,-161.79,0.00045811,30]
[383783573,1757115039535,-429.53,0.00045811,30]
[383783575,1757115039543,-199.38496642,0.00046,120]
[383783577,1757115039553,-210.33844955,0.0004613,120]
[383783579,1757115039561,-586.91995524,0.000464,120]
[383783581,1757115039571,-161.62384484,0.000464,120]
[383783583,1757115039580,-2339.39,0.000464,30]
[383783585,1757115039589,-159.17033242,0.000468,60]
[383783588,1757115039599,-380.11774691,0.000468,120]
[383783590,1757115039609,-7492.3,0.000468,14]
[383783591,1757115039619,-473.34267085,0.00047,120]
[383783594,1757115039629,-187.26379524,0.000475,120]
[383783596,1757115039639,-174.64,0.000475,30]
[383783598,1757115039649,-1048.89189383,0.00047589,15]
[383783600,1757115039663,-34307.53184585,0.000479,120]
[383783602,1757115039672,-4443.404048,0.00048,60]
[383783604,1757115039681,-405.33219475,0.00048,30]
[383783606,1757115039690,-298.77603324,0.00048,30]
[383783608,1757115039701,-234.57403463,0.00048,120]
[383783610,1757115039710,-303.99634727,0.000486,120]
[383783612,1757115039720,-209.42696692,0.000487,120]
[383783614,1757115039731,-440.71368932,0.00049,120]
[383783616,1757115039741,-301.61265588,0.00049,30]
[383783618,1757115039750,-471.44730752,0.00049,120]
[383783620,1757115039759,-175.42932374,0.00049313,2]
[383783622,1757115039769,-358.75405639,0.000498,30]
[383783624,1757115039778,-150.0,0.0004999,120]
[383783625,1757115039787,-43067.3647516,0.0004999,2]
[383783628,1757115039797,-553.80029315,0.0005,120]
[383783629,1757115039806,-200.0,0.0005,120]
[383783631,1757115039816,-157.0,0.000502,120]
[383783633,1757115039826,-1048.89189383,0.00050378,15]
[383783635,1757115039835,-156.0,0.000516,120]
[383783637,1757115039845,-280.17795851,0.0005188,120]
[383783639,1757115039854,-211.45526707,0.00051999,60]
[383783642,1757115039864,-351.59,0.000527,14]
[383783644,1757115039874,-1048.89189383,0.00053167,15]
[383783646,1757115039883,-170.67606743,0.00055,120]
[383783648,1757115039892,-538.2222404,0.00055,120]
[383783650,1757115039902,-213.06168232,0.00055,120]
[383783652,1757115039913,-500.0,0.00055,30]
[383783654,1757115039923,-235.40367152,0.00055308,2]
[383783655,1757115039933,-1273.83310995,0.00055439,8]
[383783658,1757115039943,-2339.39,0.000555,30]
[383783660,1757115039952,-3018.88120777,0.00055539,2]
[383783661,1757115039962,-2017.69,0.00055761,2]
[383783664,1757115039971,-7492.3,0.000558,30]
[383783665,1757115039980,-1048.89189383,0.00055956,15]
[383783667,1757115039989,-2000.0,0.00056,30]
[383783670,1757115039999,-235.40367152,0.00056241,2]
[383783672,1757115040008,-500.0,0.00056973,15]
[383783674,1757115040019,-421.17707357,0.00056973,5]
[383783676,1757115040028,-209.16197214,0.00056973,15]
[383783678,1757115040037,-781.21675436,0.00056998,120]
[383783680,1757115040047,-176.099,0.00056998,110]
[383783682,1757115040057,-400.0,0.00056999,120]
[383783684,1757115040067,-400.0,0.00056999,120]
[383783686,1757115040076,-370.33986579,0.00056999,120]
[383783688,1757115040085,-400.0,0.00056999,120]
[383783690,1757115040094,-400.0,0.00056999,120]
[383783692,1757115040103,-400.0,0.00056999,120]
[383783694,1757115040113,-400.0,0.00056999,120]
[383783696,1757115040122,-400.0,0.00056999,120]
[383783698,1757115040131,-400.0,0.00056999,120]
[383783700,1757115040141,-400.0,0.00056999,120]
[383783714,1757115040259,-400.0,0.00056999,120]
[383783716,1757115040269,-205.65920636,0.00056999,120]
[383783718,1757115040279,-400.0,0.00056999,120]
[383783720,1757115040290,-404.1,0.00056999,120]
[383783722,1757115040299,-400.0,0.00056999,120]
[383783724,1757115040308,-400.0,0.00056999,120]
[383783726,1757115040317,-400.0,0.00056999,120]